[Event "29. Klatovy A 2023"]
[Site "Klatovy"]
[Date "2023.07.02"]
[Round "2.2"]
[White "Skypala, Ondrej"]
[Black "Slovak, Kilian"]
[Result "0-1"]
[ECO "A10"]
[WhiteElo "2163"]
[BlackElo "2297"]
[PlyCount "50"]
[EventDate "2023.07.01"]
[EventType "swiss"]
[EventRounds "9"]
[EventCountry "CZE"]
[TimeControl "120+30"]

1. g3 {[%emt 0:00:17]} g6 {[%emt 0:00:20]} 2. Bg2 {[%emt 0:00:47]} Bg7 {[%emt 0:00:07]} 3. c4 {[%emt 0:04:53]} f5 {[%emt 0:00:15]} 4. d3 {[%emt 0:00:54]} Nf6 {[%emt 0:00:31]} 5. Nc3 {[%emt 0:00:08]} O-O {[%emt 0:00:08]} 6. e4 {[%emt 0:00:24]} fxe4 {[%emt 0:00:13]} 7. dxe4 {[%emt 0:01:24]} d6 {[%emt 0:00:07]} 8. Nge2 {[%emt 0:01:11]} c5 {[%emt 0:00:08]} 9. O-O {[%emt 0:09:30]} Nc6 {[%emt 0:00:20]} 10. h3 {[%emt 0:03:16]} Ne8 {[%emt 0:00:08]} 11. Bg5 {[%emt 0:09:39]} Nc7 {[%emt 0:02:03]} 12. Qd2 {[%emt 0:02:23]} Ne5 {[%emt 0:11:32]} 13. b3 {[%emt 0:00:08]} Bxh3 {[%emt 0:12:03]} 14. f4 {[%emt 0:03:19]} Bxg2 {[%emt 0:01:09]} 15. Kxg2 {[%emt 0:00:08]} Nf7 {[%emt 0:05:03]} 16. Bh4 {[%emt 0:04:19]} h6 {[%emt 0:04:43]} 17. Rad1 {[%emt 0:00:25]} Qd7 {[%emt 0:03:34]} 18. Nd5 {[%emt 0:01:25]} Nxd5 {[%emt 0:05:14]} 19. Qxd5 {[%emt 0:00:43]} Qg4 {[%emt 0:04:05]} 20. Rf2 {[%emt 0:00:08]} e6 {[%emt 0:02:39]} 21. Qxb7 {[%emt 0:02:04]} g5 {[%emt 0:00:51]} 22. fxg5 {[%emt 0:00:09]} hxg5 {[%emt 0:00:09]} 23. Rdf1 {[%emt 0:00:23]} Ne5 {[%emt 0:03:39]} 24. Bxg5 {[%emt 0:01:15]} Qxg5 {[%emt 0:01:19]} 25. Nf4 {[%emt 0:00:09]} Rae8 {[%emt 0:04:25]} 0-1

[Event "29. Klatovy A 2023"]
[Site "Klatovy"]
[Date "2023.07.02"]
[Round "2.3"]
[White "Horak, Martin"]
[Black "Pycha, Patrik"]
[Result "1-0"]
[ECO "E14"]
[WhiteElo "2266"]
[BlackElo "2058"]
[PlyCount "77"]
[EventDate "2023.07.01"]
[EventType "swiss"]
[EventRounds "9"]
[EventCountry "CZE"]
[TimeControl "120+30"]

1. Nf3 {[%emt 0:00:05]} Nf6 {[%emt 0:00:20]} 2. c4 {[%emt 0:00:06]} e6 {[%emt 0:02:19]} 3. Nc3 {[%emt 0:00:12]} d5 {[%emt 0:00:17]} 4. e3 {[%emt 0:00:06]} Be7 {[%emt 0:00:27]} 5. b3 {[%emt 0:00:29]} O-O {[%emt 0:00:14]} 6. Bb2 {[%emt 0:00:03]} b6 {[%emt 0:00:44]} 7. cxd5 {[%emt 0:00:06]} exd5 {[%emt 0:00:24]} 8. d4 {[%emt 0:00:05]} c5 {[%emt 0:01:10]} 9. Bd3 {[%emt 0:06:25]} Nc6 {[%emt 0:01:14]} 10. dxc5 {[%emt 0:04:33]} bxc5 {[%emt 0:00:07]} 11. O-O {[%emt 0:06:04]} Bb7 {[%emt 0:07:33]} 12. Rc1 {[%emt 0:02:14]} d4 {[%emt 0:08:03]} 13. exd4 {[%emt 0:03:33]} Nxd4 {[%emt 0:00:45]} 14. Nxd4 {[%emt 0:00:33]} cxd4 {[%emt 0:00:11]} 15. Ne2 {[%emt 0:07:28]} Qd5 {[%emt 0:03:55]} 16. f3 {[%emt 0:00:20]} Bc5 {[%emt 0:07:52]} 17. Ng3 {[%emt 0:08:11]} Qg5 {[%emt 0:18:27]} 18. Rc2 {[%emt 0:04:39]} Bb6 {[%emt 0:02:15]} 19. Bc1 {[%emt 0:06:10]} Qd5 {[%emt 0:08:59]} 20. Re1 {[%emt 0:04:01]} Rfe8 {[%emt 0:02:55]} 21. Rce2 {[%emt 0:00:57]} Qd7 {[%emt 0:01:59]} 22. Qd2 {[%emt 0:08:56]} Nd5 {[%emt 0:05:39]} 23. Qg5 {[%emt 0:03:06]} Rxe2 {[%emt 0:09:00]} 24. Rxe2 {[%emt 0:01:18]} h6 {[%emt 0:01:22]} 25. Qe5 {[%emt 0:10:30]} Nb4 {[%emt 0:13:17]} 26. Nh5 {[%emt 0:14:43]} f6 {[%emt 0:00:33]} 27. Qg3 {[%emt 0:00:43]} Qf7 {[%emt 0:15:55]} 28. Bg6 {[%emt 0:03:33]} d3+ {[%emt 0:05:09]} 29. Kh1 {[%emt 0:00:45]} Qf8 {[%emt 0:01:19]} 30. Re1 {[%emt 0:08:39]} Kh8 {[%emt 0:05:40]} 31. Bf5 {[%emt 0:03:31]} g5 {[%emt 0:01:25]} 32. Bb2 {[%emt 0:04:56]} d2 {[%emt 0:00:48]} 33. Rd1 {[%emt 0:00:49]} Nd5 {[%emt 0:00:24]} 34. Rxd2 {[%emt 0:01:31]} Re8 {[%emt 0:01:40]} 35. Be4 {[%emt 0:04:08]} Bc7 {[%emt 0:01:13]} 36. Qf2 {[%emt 0:05:30]} Qf7 {[%emt 0:00:22]} 37. Bxd5 {[%emt 0:01:45]} Qxh5 {[%emt 0:00:14]} 38. g4 {[%emt 0:00:27]} Re1+ {[%emt 0:00:32]} 39. Qxe1 {[%emt 0:00:10]} 1-0

[Event "29. Klatovy A 2023"]
[Site "Klatovy"]
[Date "2023.07.02"]
[Round "2.4"]
[White "Jordanov, Mihail"]
[Black "Vorisek, Jaroslav"]
[Result "0-1"]
[ECO "C77"]
[WhiteElo "2140"]
[BlackElo "2260"]
[PlyCount "96"]
[EventDate "2023.07.01"]
[EventType "swiss"]
[EventRounds "9"]
[EventCountry "CZE"]
[TimeControl "120+30"]

1. e4 {[%emt 0:00:04]} e5 {[%emt 0:00:12]} 2. Nf3 {[%emt 0:00:13]} Nc6 {[%emt 0:00:10]} 3. Bb5 {[%emt 0:00:26]} a6 {[%emt 0:00:16]} 4. Ba4 {[%emt 0:00:08]} Nf6 {[%emt 0:00:17]} 5. d3 {[%emt 0:00:48]} d6 {[%emt 0:03:47]} 6. O-O {[%emt 0:01:44]} g6 {[%emt 0:06:32]} 7. c3 {[%emt 0:08:15]} Bg7 {[%emt 0:00:46]} 8. Re1 {[%emt 0:06:31]} O-O {[%emt 0:07:14]} 9. h3 {[%emt 0:17:50]} b5 10. Bc2 {[%emt 0:03:45]} Re8 {[%emt 0:00:00]} 11. Bg5 Bb7 {[%emt 0:00:00]} 12. Nbd2 Qe7 {[%emt 0:00:00]} 13. Nf1 {[%emt 0:45:38]} Nd8 {[%emt 0:00:21]} 14. Qd2 {[%emt 0:01:07]} Ne6 {[%emt 0:05:21]} 15. Bh6 {[%emt 0:01:21]} Nd7 {[%emt 0:18:15]} 16. d4 {[%emt 0:15:04]} f6 {[%emt 0:06:32]} 17. d5 {[%emt 0:12:47]} Nd8 {[%emt 0:02:46]} 18. Bxg7 {[%emt 0:02:11]} Kxg7 {[%emt 0:02:19]} 19. Ne3 {[%emt 0:03:31]} Nf7 {[%emt 0:00:16]} 20. a4 {[%emt 0:02:03]} Nb6 {[%emt 0:19:01]} 21. a5 {[%emt 0:01:42]} Nc8 {[%emt 0:00:05]} 22. b3 {[%emt 0:04:23]} c5 {[%emt 0:02:53]} 23. g4 {[%emt 0:03:52]} Qd7 {[%emt 0:02:25]} 24. Kh2 {[%emt 0:01:37]} Ne7 {[%emt 0:02:47]} 25. Rg1 {[%emt 0:00:47]} Rh8 {[%emt 0:04:53]} 26. Nh4 {[%emt 0:03:31]} Rag8 {[%emt 0:02:15]} 27. Raf1 {[%emt 0:01:43]} h5 {[%emt 0:01:28]} 28. Bd1 {[%emt 0:01:58]} Bc8 {[%emt 0:04:40]} 29. Rg3 {[%emt 0:08:41]} hxg4 {[%emt 0:06:52]} 30. Bxg4 {[%emt 0:00:28]} Qd8 {[%emt 0:00:09]} 31. Bxc8 {[%emt 0:01:22]} Qxc8 {[%emt 0:00:01]} 32. Nhf5+ {[%emt 0:03:02]} Kf8 {[%emt 0:00:49]} 33. Nxe7 {[%emt 0:00:38]} Kxe7 {[%emt 0:00:01]} 34. f4 {[%emt 0:00:31]} Rh5 {[%emt 0:05:34]} 35. Ng4 {[%emt 0:02:14]} Rgh8 {[%emt 0:02:16]} 36. Qf2 {[%emt 0:01:28]} f5 {[%emt 0:00:26]} 37. fxe5 {[%emt 0:00:40]} dxe5 {[%emt 0:00:52]} 38. exf5 {[%emt 0:00:54]} gxf5 {[%emt 0:00:47]} 39. Ne3 {[%emt 0:01:39]} f4 {[%emt 0:00:22]} 40. d6+ {[%emt 0:00:12]} Kf8 {[%emt 0:00:30]} 41. d7 {[%emt 0:00:48]} fxg3+ {[%emt 0:00:36]} 42. Qxg3 {[%emt 0:00:19]} Qxd7 {[%emt 0:00:03]} 43. Ng4 {[%emt 0:00:32]} Rxh3+ {[%emt 0:00:12]} 44. Qxh3 {[%emt 0:00:00]} Rxh3+ {[%emt 0:00:06]} 45. Kxh3 {[%emt 0:00:01]} Qd3+ {[%emt 0:00:31]} 46. Kg2 {[%emt 0:00:04]} Qxc3 {[%emt 0:00:10]} 47. Rf3 {[%emt 0:00:07]} Qc2+ 48. Kg3 {[%emt 0:00:00]} Ke7 0-1

[Event "29. Klatovy A 2023"]
[Site "Klatovy"]
[Date "2023.07.02"]
[Round "2.5"]
[White "Pecka, Jan"]
[Black "Jun, Rudolf"]
[Result "0-1"]
[ECO "A70"]
[WhiteElo "2054"]
[BlackElo "2223"]
[PlyCount "62"]
[EventDate "2023.07.01"]
[EventType "swiss"]
[EventRounds "9"]
[EventCountry "CZE"]
[TimeControl "120+30"]

1. d4 {[%emt 0:00:05]} Nf6 {[%emt 0:00:10]} 2. c4 {[%emt 0:00:08]} c5 {[%emt 0:00:51]} 3. d5 {[%emt 0:01:17]} e6 {[%emt 0:00:06]} 4. Nc3 {[%emt 0:00:10]} exd5 {[%emt 0:00:06]} 5. cxd5 {[%emt 0:00:12]} d6 {[%emt 0:00:05]} 6. e4 {[%emt 0:00:51]} g6 {[%emt 0:00:30]} 7. Bb5+ {[%emt 0:02:45]} Bd7 {[%emt 0:00:17]} 8. Bxd7+ {[%emt 0:00:12]} Nbxd7 {[%emt 0:00:06]} 9. Nf3 {[%emt 0:00:10]} a6 {[%emt 0:00:13]} 10. a4 {[%emt 0:00:08]} Bg7 {[%emt 0:00:44]} 11. O-O {[%emt 0:00:46]} O-O {[%emt 0:00:05]} 12. Nd2 {[%emt 0:02:20]} Re8 {[%emt 0:01:01]} 13. a5 {[%emt 0:01:51]} Ne5 {[%emt 0:00:50]} 14. Qc2 {[%emt 0:01:40]} Nh5 {[%emt 0:04:42]} 15. f4 {[%emt 0:03:06]} Ng4 {[%emt 0:02:26]} 16. Nf3 {[%emt 0:04:13]} Bd4+ {[%emt 0:06:43]} 17. Nxd4 {[%emt 0:01:51]} cxd4 {[%emt 0:00:07]} 18. Nd1 {[%emt 0:02:27]} f5 {[%emt 0:03:06]} 19. h3 {[%emt 0:20:12]} Rc8 {[%emt 0:06:03]} 20. Qd3 {[%emt 0:02:03]} fxe4 {[%emt 0:00:46]} 21. Qxd4 {[%emt 0:00:09]} Ng3 {[%emt 0:03:53]} 22. Re1 {[%emt 0:00:13]} Nf5 {[%emt 0:00:45]} 23. Qb4 {[%emt 0:01:13]} Nf6 {[%emt 0:03:16]} 24. Ne3 {[%emt 0:08:36]} Qc7 {[%emt 0:01:47]} 25. Ra4 {[%emt 0:07:21]} Qxc1 {[%emt 0:07:44]} 26. Nxf5 {[%emt 0:06:15]} gxf5 {[%emt 0:01:09]} 27. Rxc1 {[%emt 0:00:04]} Rxc1+ {[%emt 0:00:04]} 28. Kf2 {[%emt 0:02:47]} e3+ {[%emt 0:00:05]} 29. Ke2 {[%emt 0:00:07]} Nh5 {[%emt 0:04:22]} 30. Qxd6 {[%emt 0:01:17]} Ng3+ {[%emt 0:00:48]} 31. Kd3 {[%emt 0:00:46]} e2 {[%emt 0:00:41]} 0-1

[Event "29. Klatovy A 2023"]
[Site "Klatovy"]
[Date "2023.07.02"]
[Round "2.6"]
[White "Hladky, Tadeas"]
[Black "Formanek, Martin"]
[Result "1/2-1/2"]
[ECO "B51"]
[WhiteElo "2046"]
[BlackElo "2206"]
[PlyCount "56"]
[EventDate "2023.07.01"]
[EventType "swiss"]
[EventRounds "9"]
[EventCountry "CZE"]
[TimeControl "120+30"]

1. e4 {[%emt 0:00:02]} c5 {[%emt 0:00:21]} 2. Nf3 {[%emt 0:00:07]} d6 {[%emt 0:00:20]} 3. Bb5+ {[%emt 0:00:08]} Nd7 {[%emt 0:00:26]} 4. d4 {[%emt 0:00:09]} cxd4 {[%emt 0:00:28]} 5. Qxd4 {[%emt 0:00:08]} a6 {[%emt 0:01:13]} 6. Bxd7+ {[%emt 0:00:09]} Bxd7 {[%emt 0:00:09]} 7. O-O {[%emt 0:00:16]} e5 {[%emt 0:00:33]} 8. Qd3 {[%emt 0:00:08]} h6 {[%emt 0:00:36]} 9. c4 {[%emt 0:00:14]} b5 {[%emt 0:01:21]} 10. Nfd2 {[%emt 0:00:15]} Nf6 {[%emt 0:03:52]} 11. Nc3 {[%emt 0:00:17]} Qb6 {[%emt 0:01:51]} 12. b3 {[%emt 0:00:38]} Be7 {[%emt 0:02:09]} 13. a4 {[%emt 0:06:49]} O-O {[%emt 0:06:04]} 14. axb5 {[%emt 0:08:40]} axb5 {[%emt 0:00:05]} 15. Rxa8 {[%emt 0:00:22]} Rxa8 {[%emt 0:00:04]} 16. cxb5 {[%emt 0:00:25]} Qd4 {[%emt 0:00:50]} 17. Qc2 {[%emt 0:01:15]} Be6 {[%emt 0:01:30]} 18. Rd1 {[%emt 0:26:33]} Qb4 {[%emt 0:04:26]} 19. Bb2 {[%emt 0:03:10]} Nd7 {[%emt 0:09:14]} 20. Nc4 {[%emt 0:26:57]} Nc5 {[%emt 0:22:48]} 21. Nb6 {[%emt 0:18:19]} Bxb3 {[%emt 0:07:38]} 22. Qb1 {[%emt 0:01:34]} Re8 {[%emt 0:04:23]} 23. Nbd5 {[%emt 0:02:16]} Bxd5 {[%emt 0:01:47]} 24. Nxd5 {[%emt 0:00:54]} Qxe4 {[%emt 0:03:03]} 25. Qxe4 {[%emt 0:00:17]} Nxe4 {[%emt 0:00:04]} 26. f3 {[%emt 0:00:11]} Nc5 {[%emt 0:00:27]} 27. Nxe7+ {[%emt 0:01:18]} Rxe7 {[%emt 0:00:05]} 28. Rxd6 {[%emt 0:00:07]} Rb7 {[%emt 0:00:19]} 1/2-1/2

[Event "29. Klatovy A 2023"]
[Site "Klatovy"]
[Date "2023.07.02"]
[Round "2.7"]
[White "Topencik, Bruno"]
[Black "Janous, Marek"]
[Result "1/2-1/2"]
[ECO "A20"]
[WhiteElo "1780"]
[BlackElo "2185"]
[PlyCount "85"]
[EventDate "2023.07.01"]
[EventType "swiss"]
[EventRounds "9"]
[EventCountry "CZE"]
[TimeControl "120+30"]

1. c4 {[%emt 0:00:11]} e5 {[%emt 0:03:40]} 2. Nf3 {[%emt 0:00:14]} Nc6 {[%emt 0:00:09]} 3. d4 {[%emt 0:00:13]} exd4 {[%emt 0:00:08]} 4. Nxd4 {[%emt 0:00:06]} Bb4+ {[%emt 0:09:42]} 5. Bd2 {[%emt 0:01:15]} Bxd2+ {[%emt 0:04:58]} 6. Qxd2 {[%emt 0:00:11]} d5 {[%emt 0:05:53]} 7. Nxc6 {[%emt 0:04:40]} bxc6 {[%emt 0:00:39]} 8. g3 {[%emt 0:01:54]} Ne7 {[%emt 0:01:34]} 9. Bg2 {[%emt 0:01:24]} O-O {[%emt 0:00:10]} 10. Nc3 {[%emt 0:05:05]} dxc4 {[%emt 0:04:30]} 11. O-O-O {[%emt 0:08:15]} Qxd2+ {[%emt 0:03:04]} 12. Rxd2 {[%emt 0:00:14]} Be6 {[%emt 0:03:51]} 13. Rhd1 {[%emt 0:03:28]} Rab8 {[%emt 0:01:14]} 14. Na4 {[%emt 0:16:02]} Rb5 {[%emt 0:01:49]} 15. Rd8 {[%emt 0:02:12]} f5 {[%emt 0:00:06]} 16. Rxf8+ {[%emt 0:03:15]} Kxf8 {[%emt 0:00:23]} 17. Nc3 {[%emt 0:00:33]} Ra5 {[%emt 0:03:11]} 18. Kc2 {[%emt 0:05:52]} Nd5 {[%emt 0:02:56]} 19. a3 {[%emt 0:01:37]} Kf7 {[%emt 0:01:19]} 20. h4 {[%emt 0:03:17]} h6 {[%emt 0:12:40]} 21. e3 {[%emt 0:06:27]} Ke7 {[%emt 0:12:07]} 22. Bf3 {[%emt 0:03:58]} Rc5 {[%emt 0:21:08]} 23. Bg2 {[%emt 0:02:32]} Nf6 {[%emt 0:17:47]} 24. Na4 {[%emt 0:12:29]} Ra5 {[%emt 0:00:06]} 25. Nc3 {[%emt 0:06:46]} Ng4 {[%emt 0:02:08]} 26. Rd2 {[%emt 0:02:21]} Ne5 {[%emt 0:06:54]} 27. Ne2 {[%emt 0:07:46]} Bd5 {[%emt 0:03:00]} 28. Nf4 {[%emt 0:01:54]} Bxg2 {[%emt 0:00:57]} 29. Nxg2 {[%emt 0:00:15]} Rd5 {[%emt 0:00:16]} 30. Nf4 {[%emt 0:01:11]} Rxd2+ {[%emt 0:00:16]} 31. Kxd2 {[%emt 0:00:06]} g5 {[%emt 0:00:45]} 32. hxg5 {[%emt 0:02:40]} hxg5 {[%emt 0:00:01]} 33. Ne2 {[%emt 0:01:44]} Nd3 {[%emt 0:02:27]} 34. f4 {[%emt 0:06:47]} gxf4 {[%emt 0:02:07]} 35. exf4 {[%emt 0:01:13]} Nxb2 {[%emt 0:01:20]} 36. Kc3 {[%emt 0:01:03]} Nd1+ {[%emt 0:01:24]} 37. Kxc4 {[%emt 0:00:13]} Ne3+ {[%emt 0:01:02]} 38. Kc5 {[%emt 0:15:49]} Nc2 {[%emt 0:00:13]} 39. Kxc6 {[%emt 0:01:07]} Nxa3 {[%emt 0:00:06]} 40. Nd4 {[%emt 0:00:27]} Kf6 {[%emt 0:00:08]} 41. Kxc7 {[%emt 0:00:31]} Nc4 {[%emt 0:00:31]} 42. Kc6 {[%emt 0:00:32]} Nd2 {[%emt 0:00:51]} 43. Kb5 {[%emt 0:00:33]} 1/2-1/2

[Event "29. Klatovy A 2023"]
[Site "Klatovy"]
[Date "2023.07.02"]
[Round "2.8"]
[White "Dvorak, Jan"]
[Black "Lhotsky, Zdenek"]
[Result "1-0"]
[ECO "D35"]
[WhiteElo "2176"]
[BlackElo "1840"]
[PlyCount "77"]
[EventDate "2023.07.01"]
[EventType "swiss"]
[EventRounds "9"]
[EventCountry "CZE"]
[TimeControl "120+30"]

1. d4 {[%emt 0:00:06]} d5 {[%emt 0:00:10]} 2. c4 {[%emt 0:00:11]} e6 {[%emt 0:00:09]} 3. Nc3 {[%emt 0:00:34]} Nf6 {[%emt 0:00:17]} 4. Bg5 {[%emt 0:00:36]} Bb4 {[%emt 0:01:19]} 5. e3 {[%emt 0:01:10]} O-O {[%emt 0:02:19]} 6. cxd5 {[%emt 0:03:12]} exd5 {[%emt 0:00:14]} 7. Bd3 {[%emt 0:00:56]} Qd6 {[%emt 0:11:13]} 8. Nge2 {[%emt 0:15:45]} c6 {[%emt 0:07:08]} 9. Qc2 {[%emt 0:10:26]} Nbd7 {[%emt 0:03:30]} 10. O-O {[%emt 0:06:15]} Re8 {[%emt 0:04:16]} 11. a3 {[%emt 0:03:12]} Ba5 {[%emt 0:00:55]} 12. b4 {[%emt 0:01:09]} Bd8 {[%emt 0:00:50]} 13. Na4 {[%emt 0:10:44]} Nf8 {[%emt 0:03:45]} 14. Bf4 {[%emt 0:08:22]} Qe7 {[%emt 0:02:09]} 15. b5 {[%emt 0:04:11]} cxb5 {[%emt 0:05:55]} 16. Bxb5 {[%emt 0:00:21]} Bd7 {[%emt 0:00:33]} 17. Bxd7 {[%emt 0:04:23]} N8xd7 {[%emt 0:03:32]} 18. Qb3 {[%emt 0:08:38]} Bb6 {[%emt 0:06:18]} 19. Nec3 {[%emt 0:04:59]} Red8 {[%emt 0:07:34]} 20. Nxd5 {[%emt 0:04:45]} Nxd5 {[%emt 0:00:29]} 21. Qxd5 {[%emt 0:00:03]} Nc5 {[%emt 0:00:33]} 22. Qc4 {[%emt 0:03:11]} Ne4 {[%emt 0:04:03]} 23. Rfc1 {[%emt 0:05:49]} Ba5 {[%emt 0:01:59]} 24. Qb5 {[%emt 0:03:28]} b6 {[%emt 0:01:57]} 25. Nb2 {[%emt 0:11:30]} Rac8 {[%emt 0:02:42]} 26. Rxc8 {[%emt 0:08:02]} Rxc8 {[%emt 0:00:03]} 27. Nd3 {[%emt 0:00:28]} Rc2 {[%emt 0:02:31]} 28. Qd5 {[%emt 0:03:14]} h6 {[%emt 0:01:21]} 29. Rc1 {[%emt 0:04:04]} Rxc1+ {[%emt 0:20:19]} 30. Nxc1 {[%emt 0:00:01]} Nd2 {[%emt 0:01:43]} 31. Bd6 {[%emt 0:02:26]} Qd7 {[%emt 0:01:01]} 32. h3 {[%emt 0:01:22]} Qc8 {[%emt 0:03:46]} 33. Nb3 {[%emt 0:01:21]} Nxb3 {[%emt 0:03:08]} 34. Qxb3 {[%emt 0:00:02]} Qc1+ {[%emt 0:01:28]} 35. Kh2 {[%emt 0:00:05]} Be1 {[%emt 0:00:40]} 36. Bg3 {[%emt 0:00:26]} Qd2 {[%emt 0:00:12]} 37. Qc4 {[%emt 0:00:35]} Qb2 {[%emt 0:01:09]} 38. a4 {[%emt 0:01:28]} g6 {[%emt 0:00:18]} 39. Qc8+ {[%emt 0:00:32]} 1-0

[Event "29. Klatovy A 2023"]
[Site "Klatovy"]
[Date "2023.07.02"]
[Round "2.9"]
[White "Honcharov, Makar"]
[Black "Soural, Jan"]
[Result "1/2-1/2"]
[ECO "B76"]
[WhiteElo "1696"]
[BlackElo "2176"]
[PlyCount "60"]
[EventDate "2023.07.01"]
[EventType "swiss"]
[EventRounds "9"]
[EventCountry "CZE"]
[TimeControl "120+30"]

1. e4 {[%emt 0:00:03]} c5 {[%emt 0:01:16]} 2. Nf3 {[%emt 0:00:12]} d6 {[%emt 0:00:05]} 3. d4 {[%emt 0:00:07]} cxd4 {[%emt 0:00:10]} 4. Nxd4 {[%emt 0:00:05]} Nf6 {[%emt 0:03:31]} 5. Nc3 {[%emt 0:00:11]} g6 {[%emt 0:00:03]} 6. Be3 {[%emt 0:00:08]} Bg7 {[%emt 0:00:02]} 7. f3 {[%emt 0:00:10]} O-O {[%emt 0:00:22]} 8. Qd2 {[%emt 0:00:02]} Nc6 {[%emt 0:00:11]} 9. g4 {[%emt 0:00:07]} Be6 {[%emt 0:17:15]} 10. Nxe6 {[%emt 0:00:28]} fxe6 {[%emt 0:00:04]} 11. Nb5 {[%emt 0:00:44]} d5 {[%emt 0:11:00]} 12. g5 {[%emt 0:06:24]} Nh5 {[%emt 0:09:58]} 13. O-O-O {[%emt 0:02:46]} a6 {[%emt 0:10:18]} 14. exd5 {[%emt 0:15:53]} axb5 {[%emt 0:12:28]} 15. dxc6 {[%emt 0:00:24]} Rxa2 {[%emt 0:02:13]} 16. Qxd8 {[%emt 0:00:53]} Ra1+ {[%emt 0:02:51]} 17. Kd2 {[%emt 0:00:07]} Rxd1+ {[%emt 0:00:37]} 18. Kxd1 {[%emt 0:00:09]} Rxd8+ {[%emt 0:00:05]} 19. Bd3 {[%emt 0:00:08]} bxc6 {[%emt 0:00:16]} 20. b3 {[%emt 0:04:07]} Be5 {[%emt 0:33:37]} 21. Ke2 {[%emt 0:03:21]} Nf4+ {[%emt 0:00:31]} 22. Bxf4 {[%emt 0:00:20]} Bxf4 {[%emt 0:00:04]} 23. h4 {[%emt 0:00:20]} Ra8 {[%emt 0:12:53]} 24. Kf2 {[%emt 0:02:29]} Ra2 {[%emt 0:00:05]} 25. Re1 {[%emt 0:00:55]} Kf7 {[%emt 0:02:16]} 26. Re4 {[%emt 0:04:24]} e5 {[%emt 0:00:26]} 27. Re2 {[%emt 0:00:46]} Ra1 {[%emt 0:00:18]} 28. Kg2 {[%emt 0:00:16]} Ke6 {[%emt 0:01:30]} 29. Be4 {[%emt 0:03:12]} Kd6 {[%emt 0:00:09]} 30. c4 {[%emt 0:00:17]} bxc4 {[%emt 0:05:36]} 1/2-1/2

[Event "29. Klatovy A 2023"]
[Site "Klatovy"]
[Date "2023.07.02"]
[Round "2.10"]
[White "Straka, Vojtech"]
[Black "Kroulik, Vaclav"]
[Result "1-0"]
[ECO "A35"]
[WhiteElo "2433"]
[BlackElo "1750"]
[PlyCount "103"]
[EventDate "2023.07.01"]
[EventType "swiss"]
[EventRounds "9"]
[EventCountry "CZE"]
[TimeControl "120+30"]

1. c4 {[%emt 0:00:02]} c5 {[%emt 0:00:06]} 2. Nf3 {[%emt 0:00:27]} Nc6 {[%emt 0:00:07]} 3. Nc3 {[%emt 0:00:21]} e5 {[%emt 0:00:14]} 4. g3 {[%emt 0:01:02]} g6 {[%emt 0:00:15]} 5. h4 {[%emt 0:04:45]} h5 {[%emt 0:01:34]} 6. d3 {[%emt 0:00:41]} Bg7 {[%emt 0:00:58]} 7. Bg5 {[%emt 0:00:59]} f6 {[%emt 0:01:26]} 8. Be3 {[%emt 0:04:36]} Nd4 {[%emt 0:02:05]} 9. Bg2 {[%emt 0:00:11]} Ne7 {[%emt 0:00:42]} 10. a3 {[%emt 0:00:21]} Nef5 {[%emt 0:04:36]} 11. Bd2 {[%emt 0:00:37]} d6 {[%emt 0:03:34]} 12. e3 {[%emt 0:04:16]} Nc6 {[%emt 0:02:17]} 13. Rb1 {[%emt 0:00:54]} a5 {[%emt 0:01:36]} 14. O-O {[%emt 0:05:32]} O-O {[%emt 0:01:19]} 15. Nd5 {[%emt 0:01:22]} Be6 {[%emt 0:02:34]} 16. Ne1 {[%emt 0:02:25]} Nfe7 {[%emt 0:04:25]} 17. Nc2 {[%emt 0:06:38]} Bg4 {[%emt 0:10:44]} 18. Qe1 {[%emt 0:03:02]} Bf5 {[%emt 0:04:17]} 19. e4 {[%emt 0:18:05]} Be6 {[%emt 0:00:53]} 20. f4 {[%emt 0:04:26]} f5 {[%emt 0:08:46]} 21. Qe2 {[%emt 0:08:27]} fxe4 {[%emt 0:14:07]} 22. Bxe4 {[%emt 0:00:57]} Nf5 {[%emt 0:01:24]} 23. Qg2 {[%emt 0:02:08]} Kh7 {[%emt 0:07:21]} 24. Rbe1 {[%emt 0:04:18]} Bxd5 {[%emt 0:05:07]} 25. cxd5 {[%emt 0:03:01]} Ncd4 {[%emt 0:02:10]} 26. Nxd4 {[%emt 0:00:13]} Nxd4 {[%emt 0:02:40]} 27. Be3 {[%emt 0:18:06]} exf4 {[%emt 0:09:53]} 28. Bxf4 {[%emt 0:00:40]} Qd7 {[%emt 0:01:02]} 29. Kh2 {[%emt 0:17:09]} Rae8 {[%emt 0:02:18]} 30. Rf2 {[%emt 0:00:55]} b5 {[%emt 0:08:39]} 31. Ref1 {[%emt 0:02:17]} b4 {[%emt 0:02:29]} 32. axb4 {[%emt 0:01:30]} axb4 {[%emt 0:00:20]} 33. Qh3 {[%emt 0:01:55]} Qxh3+ {[%emt 0:09:32]} 34. Kxh3 {[%emt 0:00:02]} Nf5 {[%emt 0:01:19]} 35. Ra1 {[%emt 0:05:38]} Ra8 {[%emt 0:02:21]} 36. Rxa8 {[%emt 0:00:57]} Rxa8 {[%emt 0:00:02]} 37. Bxf5 {[%emt 0:00:16]} gxf5 {[%emt 0:00:11]} 38. Bxd6 {[%emt 0:00:07]} Rd8 {[%emt 0:00:18]} 39. Bxc5 {[%emt 0:00:17]} Rxd5 {[%emt 0:00:11]} 40. Bxb4 {[%emt 0:00:23]} Rxd3 {[%emt 0:00:46]} 41. Rxf5 {[%emt 0:00:22]} Kg6 {[%emt 0:00:42]} 42. Rg5+ {[%emt 0:00:26]} Kh6 {[%emt 0:00:23]} 43. Rb5 {[%emt 0:00:44]} Kg6 {[%emt 0:03:06]} 44. Bc3 {[%emt 0:03:15]} Bxc3 {[%emt 0:02:36]} 45. Rb3 {[%emt 0:00:18]} Rd2 {[%emt 0:00:14]} 46. bxc3 {[%emt 0:00:07]} Rc2 {[%emt 0:00:24]} 47. Rb6+ {[%emt 0:00:13]} Kf5 {[%emt 0:00:27]} 48. Rh6 {[%emt 0:00:18]} Rxc3 {[%emt 0:01:32]} 49. Rxh5+ {[%emt 0:00:07]} Kg6 {[%emt 0:00:29]} 50. Ra5 {[%emt 0:00:09]} Rc4 {[%emt 0:00:17]} 51. Ra6+ {[%emt 0:00:24]} Kh5 {[%emt 0:00:38]} 52. g4+ {[%emt 0:00:11]} 1-0